Cogmind - Beta 9.6 @@@ ROGUE MODE // 2020.05.31 @ 13:37:05 Player: Pimski Result: Destroyed by 8R-AWN with 8R-AWN's Boregun Performance ------------- Evolutions (0) 0 Regions Visited (3) 600 Robots Destroyed (27) 135 Value Destroyed (410) 410 Prototype IDs (35) 700 Alien Tech Used (0) 0 Bonus (-152) -152 TOTAL SCORE: 1693 Bonus ------- Aligned with FarCom 300 Friendly Fire -452 Cogmind --------- Core Integrity 0/250 Matter 126/300 Energy 250/250 System Corruption 0% Temperature Cool (0) Movement Core (700) Ox13 Location -10/Exiles Parts ------- > --- POWER (1) -------- Ion Engine > --- PROPULSION (2) --- (None) > --- UTILITY (2) ------ High-capacity Storage Unit > --- WEAPON (2) ------- Assault Rifle Assault Rifle > --- INVENTORY (12) --- Compact Wheel Large Matter Pod (150) Assault Rifle Assault Rifle Assault Rifle Rocket Launcher Stasis Trap (100%) Stasis Trap (100%) Stasis Trap (100%) Peak State ------------ > --- POWER ------------ Ion Engine > --- PROPULSION ------- Light Treads Light Treads > --- UTILITY ---------- High-capacity Storage Unit PSU Rigger > --- WEAPON ----------- Assault Rifle Rocket Launcher > --- INVENTORY -------- Light Treads Compact Wheel Assault Rifle Assault Rifle Assault Rifle Assault Rifle Assault Rifle Stasis Trap Stasis Trap Stasis Trap Stasis Trap Stasis Trap [Rating: 16] Favorites ----------- Power Ion Engine Engine Ion Engine Propulsion Light Treads Treads Light Treads Leg Aluminum Leg Utility High-capacity Storage Unit Device PSU Rigger Storage High-capacity Storage Unit Protection Light Armor Plating Weapon Assault Rifle Energy Gun Medium Laser Ballistic Gun Assault Rifle Launcher Rocket Launcher Special Melee Weapon Datajack Build | -11 -10 -10 -10 ------- Run | Scr Mat Min Exi Slots Evolved . | . . . . Power . | . . . . Propulsion . | . . . . Utility . | . . . . Weapon . | . . . . Parts Attached 29 | 2 15 3 9 Power 1 | . . 1 . Engine 1 | . . 1 . Core . | . . . . Reactor . | . . . . Propulsion 8 | . 7 . 1 Treads 8 | . 7 . 1 Leg . | . . . . Wheel . | . . . . Hover . | . . . . Flight . | . . . . Utility 7 | 1 3 . 3 Device 1 | . . . 1 Storage 4 | 1 3 . . Processor . | . . . . Hackware . | . . . . Protection 2 | . . . 2 Artifact . | . . . . Weapon 13 | 1 5 2 5 Energy Gun . | . . . . Energy Cannon . | . . . . Ballistic Gun 10 | 1 5 1 3 Ballistic Cannon . | . . . . Launcher 2 | . . 1 1 Special Weapon . | . . . . Impact Weapon . | . . . . Slashing Weapon . | . . . . Piercing Weapon . | . . . . Special Melee Weapon 1 | . . . 1 Unidentified Prototypes . | . . . . Parts Lost 6 | . 1 . 5 Power . | . . . . Propulsion 3 | . . . 3 Utility 1 | . . . 1 Weapon 2 | . 1 . 1 Highest Loss Streak 5 | . 1 . 5 Average Slot Usage (%) 98 | . 99 100 97 Engine 14 | . 14 14 14 Treads 24 | . 21 28 27 Leg 2 | . 6 . . Storage 25 | . 28 28 22 Protection 1 | . . . 2 Ballistic Gun 21 | . 26 27 17 Launcher 5 | . . . 9 Naked Turns . | . . . . Heaviest Build 75 | 17 73 73 75 Greatest Support 40 | 20 40 40 40 Greatest Overweight (x) 3 | . 3 1 1 Average Overweight (x) . | . . 1 1 Largest Inventory Capacity 20 | 8 20 20 20 Average Capacity 17 | 6 16 20 16 Most Carried 20 | 6 20 20 20 Average Carried 15 | 6 14 19 16 Final Capacity 20 | 8 20 20 12 Final Carried 20 | 6 20 20 9 Class Distribution -------------------- 63% | Hauler-Mutant 31% | Mutant 5% | Trapper-Mutant Dominant Class ---------------- Hauler-Mutant | -10/Materials Hauler-Mutant | -10/Mines Hauler-Mutant | -10/Exiles Resources | -11 -10 -10 -10 ----------- Run | Scr Mat Min Exi Matter Collected 1190 | 220 832 78 60 Remotely . | . . . . Salvage Created 837 | 73 693 51 20 Parts 44 | 2 38 4 . Haulers Intercepted 2 | . 2 . . Recyclers Shooed 4 | . 4 . . Parts Field Recycled . | . . . . Retrieved Matter . | . . . . Parts Self-Destructed . | . . . . Prevented . | . . . . Kills | -11 -10 -10 -10 ------- Run | Scr Mat Min Exi Combat Hostiles Destroyed 16 | . 8 4 4 Guns 9 | . 8 1 . AOE 7 | . . 3 4 Classes Destroyed 8 | 1 5 1 1 Worker 1 | . 1 . . Hauler 2 | . 2 . . Recycler 4 | 1 3 . . Operator 1 | . 1 . . Watcher 1 | . 1 . . Swarmer 3 | . . 3 . Grunt 9 | . 8 1 . Assembled 6 | . . . 6 Best Kill Streak 4 | 1 4 3 4 Combat Bots Only 4 | . 2 3 4 Max Kills in Single Turn 3 | 1 1 3 2 Gunslinging . | . . . . Exploded 3 | . . 3 2 Melee . | . . . . Uniques/NPCs Destroyed 1 | . . . 1 EX-DEC (-10/Exiles) Combat | -11 -10 -10 -10 -------- Run | Scr Mat Min Exi Damage Taken 1338 | . 680 84 574 Core 254 | . 94 . 160 Absorbed by Shields 129 | . . . 129 Core Remaining (%) 100 | 100 . . . Volleys Fired 117 | 2 87 4 24 Largest 2 | 2 2 2 2 Hottest 90 | 90 70 40 40 Shots Fired 225 | 4 173 5 43 Gun 219 | 4 173 4 38 Cannon . | . . . . Launcher 6 | . . 1 5 Special . | . . . . Kinetic 213 | . 171 4 38 Thermal 4 | 2 2 . . Explosive 6 | . . 1 5 Electromagnetic 2 | 2 . . . Robot Hit Streak 22 | 3 22 3 6 Robot Miss Streak 4 | 1 4 1 2 Penetration Max . | . . . . Secondary Targets . | . . . . Shots Hit Robots 172 | 3 128 3 38 Core Hits 55 | 2 32 5 16 Critical Hits 1 | . 1 . . Critical Kills . | . . . . Critical Parts Destroyed 1 | . 1 . . Melee Attacks 4 | . . . 4 Impact . | . . . . Slashing . | . . . . Piercing . | . . . . Sneak Attacks 4 | . . . 4 Combat Hostiles . | . . . . Follow-up Attacks . | . . . . Damage Inflicted 2872 | 66 1643 187 976 Guns 2106 | 38 1643 39 386 Cannons . | . . . . Explosions 766 | 28 . 148 590 Melee . | . . . . Ramming . | . . . . Kinetic 2068 | . 1643 39 386 Thermal 53 | 53 . . . Explosive 738 | . . 148 590 Electromagnetic 13 | 13 . . . Impact . | . . . . Slashing . | . . . . Piercing . | . . . . Highest Corruption . | . . . . Average Corruption . | . . . . Corruption Purged . | . . . . Overload Shots . | . . . . Overflow Damage 22 | . . 3 19 Projectiles . | . . . . Explosions 22 | . . 3 19 Melee . | . . . . Knockbacks . | . . . . Impact . | . . . . Kinetic . | . . . . Secondary . | . . . . Self-Inflicted Damage 23 | . . 23 . Shots 1 | . . 1 . Rammed . | . . . . Targets Rammed . | . . . . Kicked . | . . . . Crushed . | . . . . Highest Temperature 40 | 40 11 . . Average Temperature 9 | 20 5 . . Received Heat Transfer 378 | . 366 12 . Siege Activations . | . . . . Robots Corrupted . | . . . . Combat Hostiles . | . . . . Parts Fried . | . . . . Impact Corruptions . | . . . . Robots Melted . | . . . . Combat Hostiles . | . . . . Parts Melted 1 | 1 . . . Heat Transferred 124 | 124 . . . Parts Sabotaged . | . . . . Parts Stolen . | . . . . Parts Stripped . | . . . . Power Chain Reactions 1 | 1 . . . Missiles Intercepted . | . . . . Alert | -11 -10 -10 -10 ------- Run | Scr Mat Min Exi Peak Influence 132 | 5 132 99 . Average Influence 39 | 4 40 33 . Maximum Alert Level . | . . . . Low Security (%) 100 | 100 100 100 . Level 1 . | . . . . Level 2 . | . . . . Level 3 . | . . . . Level 4 . | . . . . Level 5 . | . . . . High Security . | . . . . Max Security . | . . . . Squads Dispatched 5 | . 5 . . Investigation 2 | . 2 . . Extermination . | . . . . Reinforcement 3 | . 3 . . Assault . | . . . . Garrison . | . . . . Intercept . | . . . . Construction Impeded . | . . . . Haulers Reinforced . | . . . . Stealth | -11 -10 -10 -10 --------- Run | Scr Mat Min Exi Distress Signals 2 | . 1 1 . Communications Jammed . | . . . . Distress Signals . | . . . . Times Spotted 36 | . 26 4 6 Peak Tracking Total 7 | . 4 3 7 Tactical Retreats 3 | . 3 . . Traps | -11 -10 -10 -10 ------- Run | Scr Mat Min Exi Traps Triggered 7 | . 5 . 2 Indirectly . | . . . . Trap Hack Attempts . | . . . . Triggered . | . . . . Disarmed . | . . . . Reprogrammed . | . . . . Reused . | . . . . Traps Extracted . | . . . . Installed 2 | . . . 2 Triggered . | . . . . Machines | -11 -10 -10 -10 ---------- Run | Scr Mat Min Exi Machines Disabled 4 | . . . 4 Max in Single Turn 2 | . . . 2 Machines Sabotaged . | . . . . Garrisons Compromised . | . . . . Overloaded Fab Kills . | . . . . Fab Network Shutdowns . | . . . . Hacking | -11 -10 -10 -10 --------- Run | Scr Mat Min Exi Machines Accessed 9 | . 7 . 2 Terminals 5 | . 5 . . Fabricators . | . . . . Repair Stations . | . . . . Recycling Units 2 | . 2 . . Scanalyzers . | . . . . Garrison Access . | . . . . Total Hacks 17 | . 15 . 2 Successful 7 | . 5 . 2 Failed 10 | . 10 . . Catastrophic 2 | . 2 . . Database Lockouts . | . . . . Manual 13 | . 12 . 1 Terminals 13 | . 13 . . Fabricators . | . . . . Repair Stations . | . . . . Recycling Units 2 | . 2 . . Scanalyzers . | . . . . Garrison Access . | . . . . Terminal Hacks 5 | . 3 . 2 Record 1 | . . . 1 Robot Analysis 2 | . 2 . . Locate Traps 1 | . 1 . . EX-Prototype ID Bank 1 | . . . 1 Fabricator Hacks . | . . . . Repair Station Hacks . | . . . . Recycling Unit Hacks 1 | . 1 . . Retrieve Components 1 | . 1 . . Scanalyzer . | . . . . Garrison Access Hacks . | . . . . Unauthorized Hacks 1 | . 1 . . Terminals 1 | . 1 . . Botnet 1 | . 1 . . Fabricators . | . . . . Repair Stations . | . . . . Recycling Units . | . . . . Scanalyzers . | . . . . Garrison Access . | . . . . Data Cores Recovered . | . . . . Used . | . . . . Hacking Detections 6 | . 6 . . Full Trace Events 1 | . 1 . . Feedback Events . | . . . . Feedback Blocked . | . . . . Robot Schematics Acquired . | . . . . Robots Built . | . . . . Matter . | . . . . Time . | . . . . Total Robot Build Rating . | . . . . Part Schematics Acquired . | . . . . Parts Built . | . . . . Matter . | . . . . Time . | . . . . Total Part Build Rating . | . . . . Parts Repaired . | . . . . Time . | . . . . Parts Recycled . | . . . . Recycled Matter . | . . . . Retrieved Matter . | . . . . Retrieved Components 3 | . 3 . . Parts Scanalyzed . | . . . . Part Schematics Acquired . | . . . . Parts Damaged . | . . . . Bothacking | -11 -10 -10 -10 ------------ Run | Scr Mat Min Exi Used RIF Installer . | . . . . Robots Hacked 4 | . . . 4 Non-combat 3 | . . . 3 Combat 1 | . . . 1 Robot Hacks Applied 4 | . . . 4 parse_system 4 | . . . 4 Relay Couplers Released . | . . . . Robots Rewired . | . . . . Allies Hacked . | . . . . Hacks Repelled . | . . . . Allies | -11 -10 -10 -10 -------- Run | Scr Mat Min Exi Total Allies . | . . . . Largest Group . | . . . . Highest-Rated Group . | . . . . Highest-Rated Ally . | . . . . Total Orders . | . . . . Ally Attacks 10 | . . . 10 Total Damage 464 | . . . 464 Kills 1 | . . . 1 Allies Corrupted . | . . . . Allies Melted . | . . . . Turrets Deployed 2 | . . . 2 Intel | -11 -10 -10 -10 ------- Run | Scr Mat Min Exi Robot Analysis Total 2 | . 2 . . Derelict Logs Recovered 1 | . . 1 . Drone Launches . | . . . . Drone Recoveries . | . . . . Exploration | -11 -10 -10 -10 ------------- Run | Scr Mat Min Exi Turns Passed 3804 | 21 1492 246 2045 Spaces Moved 1868 | 11 658 124 1075 Core . | . . . . Treads 1685 | . 486 124 1075 Legs 183 | 11 172 . . Wheels . | . . . . Hover . | . . . . Flight . | . . . . Fastest Speed 120 | 120 120 180 180 Average Speed 176 | 120 170 180 180 Slowest Speed 220 | 120 220 180 180 Overloaded Moves . | . . . . Propulsion Burnouts . | . . . . Robots Hopped . | . . . . Cave-ins Triggered . | . . . . Exploration Rate (%) 52 | 3 99 40 69 Regions Visited 3 Branch Regions 2 Pre-discovered Areas 2 | . . 1 1 Known Exits Taken . | . . . . Unknown Exits Taken 3 | 1 1 1 . Scrap Searched 1 | . . 1 . Spaces Dug 8 | . . 8 . Terrain Destroyed 41 | 2 . 8 31 Melee . | . . . . Projectile . | . . . . AOE 41 | 2 . 8 31 Actions | -11 -10 -10 -10 --------- Run | Scr Mat Min Exi Total 2159 | 14 855 144 1146 Wait 73 | . 71 2 . Move 1865 | 10 657 123 1075 Hop . | . . . . Pick Up 34 | . 18 6 10 Fast Attach 10 | 1 6 . 3 Attach 9 | . 5 . 4 Detach . | . . . . Swap 10 | 1 4 3 2 Drop 35 | . 7 6 22 Fire 117 | 2 87 4 24 Melee 4 | . . . 4 Ram . | . . . . Kick . | . . . . Crush . | . . . . Escape Stasis . | . . . . Rewire . | . . . . Trap 2 | . . . 2 Miscellaneous . | . . . . Route ------- -11/Scrapyard -10/Materials (discovered 5 exits: [*Mat x3] / [*Min x2]) -10/Mines (discovered 3 exits: [*Mat x2] / *Exi) -10/Exiles (discovered 1 exit: [*Min]) History --------- Turn | Location | Event 5 | -11/Scrapyard | Discovered new exit (range 2) 22 | -11/Scrapyard | Entered Materials 122 | -10/Materials | Discovered new exit (range 6) 315 | -10/Materials | Build established: Mutant 866 | -10/Materials | Discovered new exit (range 6) 956 | -10/Materials | Build established: Hauler-Mutant 989 | -10/Materials | Discovered new exit (range 5) 1096 | -10/Materials | Discovered new exit (range 4) 1182 | -10/Materials | Discovered new exit (range 16) 1514 | -10/Materials | Entered Mines 1515 | -10/Mines | Assembled infested the area 1520 | -10/Mines | Assisted by a Guerilla fighting off Assembled 1568 | -10/Mines | Discovered new exit (range 6) 1590 | -10/Mines | Found a hidden stash of uninstalled traps 1698 | -10/Mines | Discovered new exit (range 10) 1725 | -10/Mines | Received a Rocket Launcher from a helpful Derelict 1753 | -10/Mines | Deemed a non-threat by the Exiles lab entrance 1753 | -10/Mines | Discovered new exit (range 5) 1760 | -10/Mines | Entered Exiles 1784 | -10/Exiles | Discovered new exit (range 15) 1844 | -10/Exiles | Met 8R-AWN 1873 | -10/Exiles | Met EX-HEX 1950 | -10/Exiles | Met EX-DEC 1979 | -10/Exiles | Learned location of Zion (-6) 2320 | -10/Exiles | Met EX-BIN 2347 | -10/Exiles | Aligned with FarCom system 2349 | -10/Exiles | Given EX-Vault access code 2390 | -10/Exiles | Opened EX-Vault 2401 | -10/Exiles | Found Lightpack 2.0 2406 | -10/Exiles | Found Deploy-a-Sentry 2448 | -10/Exiles | Warned to stay clear of 0b10 Research branches 2525 | -10/Exiles | DAS Turret deployed 2632 | -10/Exiles | Found Deploy-a-Sentry 2757 | -10/Exiles | DAS Turret deployed 3209 | -10/Exiles | Found PSU Rigger 3708 | -10/Exiles | Build established: Mutant 3734 | -10/Exiles | Attacked by the Exiles 3739 | -10/Exiles | Allies destroyed EX-DEC 3755 | -10/Exiles | Core integrity fell below 50% 3789 | -10/Exiles | Core integrity fell below 20% 3805 | -10/Exiles | Destroyed by 8R-AWN with 8R-AWN's Boregun Last Messages --------------- 03779_ HV Slug penetrates Wall. 03779_ Penetrated by HV Slug. 03779_ Installed Stasis Trap. 03780_ Triggered Stasis Trap. 03780_ A bubble of rippling energy engulfs the area. 03780_ Field strength at 94. 03781_ Penetrated by HV Slug. 03788_ Critical hit. 03788_ Assault Rifle destroyed. 03788_ Penetrated by HV Slug. 03792_ HV Slug penetrates Machine. 03792_ HV Slug penetrates Wall. 03796_ Destroyed 8R-AWN's Armor/TH. 03796_ Penetrated by HV Slug. 03798_ The unstable cave ceiling collapses. 03800_ HV Slug penetrates Wall. 03800_ Penetrated by HV Slug. 03805_ The unstable cave ceiling collapses. 03805_ HV Slug penetrates Wall. 03805_ Penetrated by HV Slug. Map ----- +----------------------------------------------------+ | """#??????????????????????????????????? | | """#??????????????????????????????????? | | """#??????????????????????????????????? | | """#??????????????????????????????????? | | """##?????????????????????????????????? | | """""?????????????????????????????????? | | """##?????????????????????????????????? | | "X" """""?????????????????????????????????? | | """ #??????????????????????????????????? | | """""""""#??????????????????????????????????? | | ###########??????????????????????????????????? | | #????????????????????????????????????????????? | | #????????????????????????????????????????????? | | ##???????????????????????????????????????????? | | ##???####;######????????????????????????????? | | #####""" """"##???????????????????????????? | | " """"##??????????????????????????? | | " " #??????????????????????????? | | " """#??????????????????????????? | | a"#???????????#####??????????? | | "##?????????##" #??????????? | | ###???????#" #??????????? | | "" ##?????##" ##?????????? | | #""" ; ???### ###???????? | | #####""" ;#???# ######### | | ????##""" @##?## #""""## | | ?????#"""" !;## | | ????##"" g ## | | ?####"""" #### | | ##""" ""#?#"""""#### | | """ #"""##?#######??#### | | ######??????????????## | | ##????????????????????? | | " ##?????????????????????? | | "" "" #??????????????????????? | | ##""" " " "" #??????????????????????? | | ######""" """ #???????????????????????? | | #????###""""## ## # ????????????????????????? | | ####???######??? ### ##????????????????????????? | | "!#??????????????? #??????????????????????????? | | !#???????????????????????????????????????????? | | "#???????????????????????????????????????????? | | !""!"#???????????????????????????????????????????? | | ######???????????????????????????????????????????? | | ?????????????????????????????????????????????????? | | ?????????????????????????????????????????????????? | | ?????????????????????????????????????????????????? | | ?????????????????????????????????????????????????? | | ?????????????????????????????????????????????????? | | ?????????????????????????????????????????????????? | +----------------------------------------------------+ Best States ------------- Heat Dissipation 25 Energy Generation 10 Energy Capacity 250 Matter Stores 300 Matter Capacity 300 Sight Range 16 Terrain Scan Density 10 Armor Coverage 150 Evasion (%) 40 Recoil Reduction 2 Item Schematics ----------------- None Robot Schematics ------------------ None Fabricated ------------ Nothing Alien Tech Used ----------------- None Achievements -------------- None Challenges ------------ None Game ------ Seed FortressLightReconfigurator Manual? 0 Play Time 00:21:30 Cumulative 699.4 hours Start 2020.05.31 @ 13:18:05 End 2020.05.31 @ 13:37:05 Sessions 1 Manual Loads 0 Difficulty Rogue Special Mode None Game No. 444 Rogue 444 Adventurer 0 Explorer 0 Win Type - Total 106 Types 72/6/8/10/5/1/4 Lore% 97 Gallery% 95 Achievement% 80 Wizard Run 0 Options --------- ASCII 0 Keyboard 0 Movement Numpad Keybinds 0 Fullscreen 2 Font 18/SmallcapsGlow Map View 76x50 Tactical HUD 1 Map Filters NONE Filters NONE Steam 1 RUN: ee9fe782-0ded-42b4-ae44-386580ca4279